fUSD/lending_fUSD_20250312
["ID","MTS","AMOUNT","RATE_DAILY","PERIOD"]
[355973210,1741749043077,-744.24,9.999e-05,2]
[355973212,1741749043086,-639.55,9.999e-05,2]
[355973214,1741749043095,-500.0,9.999e-05,2]
[355973216,1741749043105,-500.0,9.999e-05,2]
[355973218,1741749043114,-500.0,9.999e-05,2]
[355973220,1741749043123,-500.0,9.999e-05,2]
[355973222,1741749043132,-548.39,9.999e-05,2]
[355973225,1741749043141,-897.14,9.999e-05,2]
[355973228,1741749043150,-532.64,9.999e-05,2]
[355973230,1741749043159,-500.0,9.999e-05,2]
[355973232,1741749043169,-512.44,9.999e-05,2]
[355973234,1741749043178,-500.0,9.999e-05,2]
[355973236,1741749043188,-840.57,9.999e-05,2]
[355973238,1741749043198,-500.0,9.999e-05,2]
[355973240,1741749043208,-500.0,9.999e-05,2]
[355973242,1741749043217,-1197.83,9.999e-05,2]
[355973245,1741749043226,-728.85,9.999e-05,2]
[355973246,1741749043235,-2048.93,9.999e-05,2]
[355973248,1741749043244,-970.19798833,9.999e-05,2]
[355973250,1741749043253,-1332.01,9.999e-05,2]
[355973251,1741749043263,-500.0,9.999e-05,2]
[355973252,1741749043272,-500.0,9.999e-05,2]
[355973253,1741749043281,-1000.69,9.999e-05,2]
[355973254,1741749043291,-185.51644069,9.999e-05,2]
[355973255,1741749043299,-1086.86,9.999e-05,2]
[355973256,1741749043309,-500.0,9.999e-05,2]
[355973257,1741749043318,-527.33,9.999e-05,2]
[355973258,1741749043327,-500.0,9.999e-05,2]
[355973259,1741749043336,-500.0,9.999e-05,2]
[355973260,1741749043345,-500.0,9.999e-05,2]
[355973261,1741749043357,-1760.04,9.999e-05,2]
[355973262,1741749043366,-1104.3,9.999e-05,2]
[355973263,1741749043375,-642.2,9.999e-05,2]
[355973264,1741749043383,-500.0,9.999e-05,2]
[355973265,1741749043392,-500.0,9.999e-05,2]
[355973266,1741749043401,-500.0,9.999e-05,2]
[355973267,1741749043410,-519.35,9.999e-05,2]
[355973268,1741749043419,-500.0,9.999e-05,2]
[355973269,1741749043429,-500.0,9.999e-05,2]
[355973270,1741749043438,-690.0,9.999e-05,2]
[355973271,1741749043447,-534.33049243,9.999e-05,2]
[355973272,1741749043456,-500.0,9.999e-05,2]
[355973273,1741749043465,-500.0,9.999e-05,2]
[355973274,1741749043474,-500.0,9.999e-05,2]
[355973275,1741749043483,-530.81,9.999e-05,2]
[355973276,1741749043492,-1170.7,9.999e-05,2]
[355973277,1741749043501,-733.28,9.999e-05,2]
[355973278,1741749043510,-500.0,9.999e-05,2]
[355973279,1741749043519,-500.0,9.999e-05,2]
[355973280,1741749043528,-500.0,9.999e-05,2]
[355973281,1741749043538,-500.0,9.999e-05,2]
[355973282,1741749043547,-943.62,9.999e-05,2]
[355973283,1741749043556,-550.99,9.999e-05,2]
[355973284,1741749043566,-1585.17,9.999e-05,2]
[355973285,1741749043575,-500.0,9.999e-05,2]
[355973286,1741749043584,-1713.85,9.999e-05,2]
[355973287,1741749043593,-500.0,9.999e-05,2]
[355973288,1741749043603,-500.0,9.999e-05,2]
[355973289,1741749043612,-7485.01,9.999e-05,2]
[355973290,1741749043622,-522.74,9.999e-05,2]
[355973292,1741749043632,-500.0,9.999e-05,2]
[355973293,1741749043642,-1472.28,9.999e-05,2]
[355973294,1741749043651,-608.17,9.999e-05,2]
[355973295,1741749043660,-520.2,9.999e-05,2]
[355973296,1741749043669,-525.84,9.999e-05,2]
[355973297,1741749043678,-500.0,9.999e-05,2]
[355973298,1741749043687,-500.0,9.999e-05,2]
[355973299,1741749043697,-980.23,9.999e-05,2]
[355973300,1741749043706,-500.0,9.999e-05,2]
[355973301,1741749043715,-5171.9,9.999e-05,2]
[355973302,1741749043724,-500.0,9.999e-05,2]
[355973303,1741749043733,-500.0,9.999e-05,2]
[355973304,1741749043742,-636.35186522,9.999e-05,2]
[355973305,1741749043750,-162.32063779,9.999e-05,2]
[355973306,1741749043759,-500.0,9.999e-05,2]
[355973307,1741749043768,-285.24367097,9.999e-05,2]
[355973308,1741749043777,-1234.0,0.0001,2]
[355973309,1741749043786,-14452.40267035,0.0001,2]
[355973310,1741749043796,-1269419.97756745,0.0001,2]
[355973311,1741749044102,-2025.13479616,0.0001,2]
[355973312,1741749044115,-1359.0,0.0001,2]
[355973313,1741749044126,-3348.63055352,0.0001,2]
[355973314,1741749044137,-1387.40725909,0.0001,2]
[355973315,1741749044148,-999.5000125,0.0001,2]
[355973316,1741749044159,-2082.375,0.0001,2]
[355973317,1741749044177,-8533.984028,0.0001,2]
[355973318,1741749044188,-499.40092921,0.0001,2]
[355973319,1741749044238,-206584.72701191,0.0001,2]
[355973320,1741749044249,-14763.43375308,0.0001,2]
[355973321,1741749044261,-4821.6798791,0.0001,2]
[355973322,1741749044272,-308.94361421,0.0001,2]
[355973323,1741749044291,-705.12553574,0.0001,2]
[355973324,1741749044302,-4653.745843,0.0001,2]
[355973325,1741749044770,-6171.0,0.0001,2]
[355973326,1741749044991,-22113.77774051,0.0001,2]
[355973327,1741749045003,-1740.01,0.0001,2]
[355973328,1741749045014,-844.70908518,0.0001,2]
[355973329,1741749045026,-620.60000009,0.0001,2]
[355973330,1741749045046,-476.95478047,0.0001,2]
[355973331,1741749045057,-799.67334116,0.0001,2]
[355973332,1741749045067,-8436.6,0.0001,2]
[355973333,1741749045078,-8502.39998162,0.0001,2]
[355973334,1741749045102,-5418.13968742,0.0001,2]
[355973335,1741749045112,-615.40926904,0.0001,2]
[355973364,1741749046322,-696.357,9.899e-05,2]
[355973365,1741749046334,-1809.45183458,9.899e-05,2]
[355973366,1741749046350,-2494.19116542,9.899e-05,2]
[355973367,1741749046363,-648.96,9.998e-05,2]
[355973368,1741749046372,-48851.84883758,0.0001,2]
[355973369,1741749046555,-500.0,9.998e-05,2]
[355973370,1741749046565,-1734.41498821,0.0001,2]
[355973371,1741749055858,-150.0,9.998e-05,2]
[355973372,1741749058649,-262.89,9.998e-05,2]
[355973374,1741749167408,-736.83,9.798e-05,2]
[355973394,1741749382900,-150.0,9e-05,2]
[355973411,1741749690477,1062.99,8.219e-05,2]
[355973430,1741750232349,-346.17549988,9e-05,2]
[355973431,1741750232360,-53.82450012,9e-05,2]
[355973432,1741750232369,-330.43549988,9.091e-05,2]
[355973438,1741750232462,-1023.52500493,9.091e-05,2]
[355973439,1741750232521,-810.18774977,9.091e-05,2]
[355973440,1741750232575,-6655.20901477,9.091e-05,2]
[355973441,1741750232587,-4208.01786348,9.091e-05,2]
[355973442,1741750232598,-983.94936565,9.091e-05,2]
[355973443,1741750232609,-2413.42761573,9.091e-05,2]
[355973444,1741750232620,-254.89,9.091e-05,2]
[355973445,1741750232639,-302.0,9.091e-05,2]
[355973532,1741750238340,-1348.22788579,9.091e-05,2]
[355973536,1741750238619,-195.99,9.115e-05,2]
[355973537,1741750238632,-500.0,9.18e-05,2]
[355973538,1741750238643,-1000.0,9.191e-05,2]
[355973540,1741750238652,-186.24,9.215e-05,2]
[355973542,1741750238661,-165.61,9.252e-05,2]
[355973544,1741750238670,-203.93211421,9.278e-05,2]
[355973546,1741750238682,-144.76788579,9.278e-05,2]
[355973548,1741750238692,-421.0,9.616e-05,2]
[355973550,1741750238701,-354.54670916,9.798e-05,2]
[355973552,1741750238710,-150.0,9.799e-05,2]
[355973554,1741750238720,-153.92,9.8e-05,2]
[355973557,1741750238729,-98.72867531,9.8e-05,2]
[355973562,1741750238748,-51.71132469,9.8e-05,2]
[355973565,1741750238758,-326.29380618,9.8e-05,2]
[355973568,1741750238769,-562.10619382,9.8e-05,2]
[355973571,1741750238777,-150.0,9.8e-05,2]
[355973574,1741750238787,-150.0,9.8e-05,2]
[355973577,1741750238797,-150.0,9.8e-05,2]
[355973580,1741750238806,-1900.37380618,9.8e-05,2]
[355973583,1741750238817,-717.33266096,9.8e-05,2]
[355973588,1741750238837,-1144.63046961,9.8e-05,2]
[355973594,1741750238858,-1420.53306325,9.8e-05,2]
[355973596,1741750238868,-250.0,9.883e-05,2]
[355973598,1741750238878,-1000.0,9.899e-05,2]
[355973600,1741750238887,-2151.14685721,9.899e-05,2]
[355973606,1741750240384,-1292.32687993,9.899e-05,2]
[355973607,1741750240396,-1556.52626286,9.899e-05,2]
[355973608,1741750240405,-198.0,9.9e-05,2]
[355973609,1741750240415,-199.81,9.9e-05,2]
[355973610,1741750240423,-150.0,9.9e-05,2]
[355973611,1741750240433,-172.57140918,9.9e-05,2]
[355973612,1741750240448,-273.46859082,9.9e-05,2]
[355973613,1741750240457,-178.81275951,9.9e-05,2]
[355973614,1741750240469,-201.73724049,9.9e-05,2]
[355973615,1741750240478,-150.0,9.9e-05,2]
[355973616,1741750240487,-150.0,9.9e-05,2]
[355973617,1741750240497,-1481.084,9.997e-05,2]
[355973618,1741750240506,-500.0,9.998e-05,2]
[355973619,1741750240516,-109.61345041,9.998e-05,2]
[355973620,1741750240527,-390.38654959,9.998e-05,2]
[355973621,1741750240537,-500.0,9.998e-05,2]
[355973622,1741750240546,-500.0,9.998e-05,2]
[355973623,1741750240556,-500.0,9.998e-05,2]
[355973624,1741750240566,-500.0,9.998e-05,2]
[355973625,1741750240575,-616.29,9.998e-05,2]
[355973626,1741750240584,-500.0,9.998e-05,2]
[355973627,1741750240593,-500.0,9.998e-05,2]
[355973628,1741750240602,-463.59637541,9.998e-05,2]
[355973629,1741750240615,-36.40362459,9.998e-05,2]
[355973630,1741750240624,-500.0,9.998e-05,2]
[355973631,1741750240634,-492.64250683,9.998e-05,2]
[355973632,1741750240646,-12.40749317,9.998e-05,2]
[355973633,1741750240655,-500.0,9.998e-05,2]
[355973634,1741750240665,-573.75,9.998e-05,2]
[355973635,1741750240675,-500.0,9.998e-05,2]
[355973636,1741750240684,-500.0,9.998e-05,2]
[355973637,1741750240693,-500.0,9.998e-05,2]
[355973638,1741750240703,-500.0,9.998e-05,2]
[355973639,1741750240713,-510.34,9.998e-05,2]
[355973640,1741750240722,-650.76,9.998e-05,2]
[355973641,1741750240732,-500.0,9.998e-05,2]
[355973642,1741750240744,-500.0,9.998e-05,2]
[355973643,1741750240754,-500.0,9.998e-05,2]
[355973644,1741750240763,-500.0,9.998e-05,2]
[355973645,1741750240773,-549.09104782,9.998e-05,2]
[355973646,1741750240783,-691.96,9.998e-05,2]
[355973647,1741750240792,-500.0,9.998e-05,2]
[355973648,1741750240801,-604.87,9.998e-05,2]
[355973649,1741750240811,-500.0,9.998e-05,2]
[355973650,1741750240820,-621.73,9.998e-05,2]
[355973651,1741750240831,-548.32,9.998e-05,2]
[355973652,1741750240840,-585.73,9.998e-05,2]
[355973654,1741750240849,-500.0,9.998e-05,2]
[355973656,1741750240859,-500.0,9.998e-05,2]
[355973658,1741750240868,-241.96603479,9.998e-05,2]
[355973660,1741750240877,-500.0,9.998e-05,2]
[355973662,1741750240887,-500.0,9.998e-05,2]
[355973663,1741750240896,-471.80564276,9.998e-05,2]
[355973665,1741750240906,-500.0,9.998e-05,2]
[355973667,1741750240915,-619.5,9.998e-05,2]
[355973669,1741750240924,-500.0,9.998e-05,2]
[355973671,1741750240933,-500.0,9.998e-05,2]
[355973673,1741750240942,-500.0,9.998e-05,2]
[355973675,1741750240951,-500.0,9.998e-05,2]
[355973677,1741750240961,-500.0,9.998e-05,2]
[355973679,1741750240971,-500.0,9.998e-05,2]
[355973681,1741750240980,-500.0,9.998e-05,2]
[355973682,1741750240989,-500.0,9.998e-05,2]
[355973684,1741750240997,-500.0,9.998e-05,2]
[355973686,1741750241006,-500.0,9.998e-05,2]
[355973688,1741750241016,-500.0,9.998e-05,2]
[355973689,1741750241024,-500.0,9.998e-05,2]
[355973690,1741750241033,-500.0,9.998e-05,2]
[355973691,1741750241042,-500.0,9.998e-05,2]
[355973692,1741750241051,-500.0,9.998e-05,2]
[355973693,1741750241060,-150.942088,9.998e-05,2]
[355973694,1741750241069,-500.0,9.998e-05,2]
[355973695,1741750241079,-500.0,9.998e-05,2]
[355973696,1741750241088,-154.034078,9.998e-05,2]
[355973697,1741750241097,-500.0,9.998e-05,2]
[355973698,1741750241107,-625.12,9.998e-05,2]
[355973699,1741750241116,-153.003788,9.998e-05,2]
[355973700,1741750241125,-612.54,9.998e-05,2]
[355973701,1741750241136,-500.0,9.998e-05,2]
[355973702,1741750241145,-500.0,9.998e-05,2]
[355973703,1741750241154,-500.0,9.998e-05,2]
[355973704,1741750241163,-500.0,9.998e-05,2]
[355973705,1741750241173,-1011.162737,9.998e-05,2]
[355973706,1741750241183,-734.07,9.998e-05,2]
[355973707,1741750241192,-631.59,9.998e-05,2]
[355973708,1741750241202,-500.0,9.998e-05,2]
[355973709,1741750241211,-500.0,9.998e-05,2]
[355973710,1741750241220,-500.0,9.998e-05,2]
[355973711,1741750241228,-646.5902245,9.998e-05,2]
[355973712,1741750241237,-924.52,9.998e-05,2]
[355973713,1741750241247,-500.0,9.998e-05,2]
[355973714,1741750241256,-331.64214839,9.998e-05,2]
[355973715,1741750241265,-556.37,9.998e-05,2]
[355973716,1741750241274,-500.0,9.998e-05,2]
[355973717,1741750241283,-620.9,9.998e-05,2]
[355973718,1741750241292,-685.15,9.998e-05,2]
[355973719,1741750241302,-595.55,9.998e-05,2]
[355973720,1741750241311,-656.37,9.998e-05,2]
[355973721,1741750241320,-682.92,9.998e-05,2]
[355973722,1741750241329,-500.0,9.998e-05,2]
[355973723,1741750241338,-500.0,9.998e-05,2]
[355973724,1741750241347,-500.0,9.998e-05,2]
[355973725,1741750241356,-500.0,9.998e-05,2]
[355973726,1741750241366,-500.0,9.998e-05,2]
[355973727,1741750241375,-1379.11,9.998e-05,2]
[355973728,1741750241385,-699.99,9.998e-05,2]
[355973729,1741750241394,-500.0,9.998e-05,2]
[355973730,1741750241404,-500.0,9.998e-05,2]
[355973731,1741750241413,-500.0,9.998e-05,2]
[355973732,1741750241422,-500.0,9.998e-05,2]
[355973733,1741750241431,-500.0,9.998e-05,2]
[355973734,1741750241440,-1212.44,9.998e-05,2]
[355973735,1741750241449,-500.0,9.998e-05,2]
[355973736,1741750241458,-500.0,9.998e-05,2]
[355973737,1741750241471,-500.0,9.998e-05,2]
[355973738,1741750241480,-500.0,9.998e-05,2]
[355973739,1741750241490,-584.53,9.998e-05,2]
[355973740,1741750241499,-1174.68,9.998e-05,2]
[355973741,1741750241508,-500.0,9.998e-05,2]
[355973742,1741750241517,-500.0,9.998e-05,2]
[355973743,1741750241527,-1480.68,9.998e-05,2]
[355973744,1741750241536,-503.79,9.998e-05,2]
[355973745,1741750241545,-1564.3,9.998e-05,2]
[355973746,1741750241556,-634.9,9.998e-05,2]
[355973747,1741750241565,-811.31,9.998e-05,2]
[355973748,1741750241575,-1962.37,9.998e-05,2]
[355973749,1741750241583,-500.0,9.998e-05,2]
[355973750,1741750241593,-515.45,9.998e-05,2]
[355973751,1741750241603,-969.84,9.998e-05,2]
[355973752,1741750241612,-500.0,9.998e-05,2]
[355973753,1741750241622,-500.0,9.998e-05,2]
[355973754,1741750241632,-500.0,9.998e-05,2]
[355973755,1741750241641,-500.0,9.998e-05,2]
[355973756,1741750241650,-1313.26,9.998e-05,2]
[355973757,1741750241659,-703.1,9.998e-05,2]
[355973758,1741750241669,-500.0,9.998e-05,2]
[355973759,1741750241678,-1141.3,9.998e-05,2]
[355973760,1741750241687,-529.13,9.998e-05,2]
[355973761,1741750241696,-2244.36,9.998e-05,2]
[355973762,1741750241705,-1112.95,9.998e-05,2]
[355973763,1741750241714,-500.0,9.998e-05,2]
[355973764,1741750241723,-500.0,9.998e-05,2]
[355973765,1741750241732,-500.0,9.998e-05,2]
[355973766,1741750241741,-730.19,9.998e-05,2]
[355973767,1741750241754,-500.0,9.998e-05,2]
[355973768,1741750241763,-639.55,9.998e-05,2]
[355973769,1741750241772,-1414.22,9.998e-05,2]
[355973770,1741750241782,-500.0,9.998e-05,2]
[355973771,1741750241795,-500.0,9.998e-05,2]
[355973772,1741750241805,-606.9,9.998e-05,2]
[355973773,1741750241815,-500.0,9.998e-05,2]
[355973774,1741750241824,-1511.68,9.998e-05,2]
[355973775,1741750241836,-500.0,9.998e-05,2]
[355973776,1741750241846,-805.55,9.998e-05,2]
[355973777,1741750241855,-1097.46,9.998e-05,2]
[355973778,1741750241864,-874.32,9.998e-05,2]
[355973779,1741750241875,-1998.57,9.998e-05,2]
[355973780,1741750241885,-824.75,9.998e-05,2]
[355973781,1741750241895,-185.51644069,9.998e-05,2]
[355973782,1741750241903,-513.94,9.998e-05,2]
[355973783,1741750241913,-2048.93,9.998e-05,2]
[355973784,1741750241922,-2551.46,9.998e-05,2]
[355973785,1741750241931,-500.0,9.998e-05,2]
[355973786,1741750241941,-1790.18,9.998e-05,2]
[355973787,1741750241951,-1686.71,9.998e-05,2]
[355973788,1741750241960,-559.3,9.998e-05,2]
[355973789,1741750241969,-500.0,9.998e-05,2]
[355973790,1741750241979,-5081.64,9.998e-05,2]
[355973791,1741750241988,-1044.14,9.998e-05,2]
[355973792,1741750241997,-2087.97,9.998e-05,2]
[355973793,1741750242007,-710.89,9.998e-05,2]
[355973794,1741750242016,-1000.69,9.998e-05,2]
[355973795,1741750242025,-4227.32,9.998e-05,2]
[355973796,1741750242034,-675.33,9.998e-05,2]
[355973797,1741750242044,-500.0,9.998e-05,2]
[355973798,1741750242053,-531.54,9.998e-05,2]
[355973799,1741750242062,-500.0,9.998e-05,2]
[355973800,1741750242071,-500.0,9.998e-05,2]
[355973801,1741750242082,-508.69,9.998e-05,2]
[355973802,1741750242092,-500.0,9.998e-05,2]
[355973803,1741750242101,-522.95,9.998e-05,2]
[355973804,1741750242110,-1788.67,9.998e-05,2]
[355973805,1741750242119,-642.2,9.998e-05,2]
[355973806,1741750242130,-1276.28,9.998e-05,2]
[355973807,1741750242140,-500.0,9.998e-05,2]
[355973808,1741750242149,-500.0,9.998e-05,2]
[355973809,1741750242158,-500.0,9.998e-05,2]
[355973810,1741750242168,-1133.66,9.998e-05,2]
[355973811,1741750242178,-500.0,9.998e-05,2]
[355973812,1741750242188,-500.0,9.998e-05,2]
[355973813,1741750242197,-690.0,9.998e-05,2]
[355973814,1741750242207,-860.02,9.998e-05,2]
[355973815,1741750242216,-500.0,9.998e-05,2]
[355973816,1741750242226,-500.0,9.998e-05,2]
[355973817,1741750242235,-684.98,9.998e-05,2]
[355973818,1741750242245,-733.28,9.998e-05,2]
[355973819,1741750242254,-2639.62,9.998e-05,2]
[355973820,1741750242263,-733.6,9.998e-05,2]
[355973821,1741750242273,-1026.21,9.998e-05,2]
[355973822,1741750242282,-742.17,9.998e-05,2]
[355973823,1741750242291,-772.85,9.998e-05,2]
[355973824,1741750242301,-547.49,9.998e-05,2]
[355973825,1741750242310,-1335.38,9.998e-05,2]
[355973826,1741750242319,-795.9,9.998e-05,2]
[355973827,1741750242328,-500.0,9.998e-05,2]
[355973828,1741750242337,-569.48,9.998e-05,2]
[355973829,1741750242347,-943.62,9.998e-05,2]
[355973830,1741750242355,-1167.69,9.998e-05,2]
[355973831,1741750242364,-500.0,9.998e-05,2]
[355973832,1741750242374,-650.07,9.998e-05,2]
[355973833,1741750242384,-362.04000336,9.998e-05,2]
[355973834,1741750242394,-500.0,9.998e-05,2]
[355973835,1741750242403,-624.79,9.998e-05,2]
[355973836,1741750242413,-916.24,9.998e-05,2]
[355973837,1741750242422,-1585.17,9.998e-05,2]
[355973838,1741750242432,-500.0,9.998e-05,2]
[355973839,1741750242441,-500.0,9.998e-05,2]
[355973840,1741750242450,-819.24,9.998e-05,2]
[355973841,1741750242459,-154.034079,9.998e-05,2]
[355973842,1741750242469,-500.0,9.998e-05,2]
[355973843,1741750242478,-275.93794548,9.998e-05,2]
[355973844,1741750242488,-2155.29,9.998e-05,2]
[355973845,1741750242497,-500.0,9.998e-05,2]
[355973846,1741750242506,-1713.85,9.998e-05,2]
[355973847,1741750242516,-500.0,9.998e-05,2]
[355973848,1741750242525,-4020.07,9.998e-05,2]
[355973849,1741750242535,-7485.01,9.998e-05,2]
[355973850,1741750242545,-500.0,9.998e-05,2]
[355973851,1741750242554,-500.0,9.998e-05,2]
[355973852,1741750242564,-500.0,9.998e-05,2]
[355973853,1741750242573,-500.0,9.998e-05,2]
[355973854,1741750242582,-861.69,9.998e-05,2]
[355973855,1741750242591,-610.58,9.998e-05,2]
[355973856,1741750242601,-1240.35,9.998e-05,2]
[355973857,1741750242610,-500.0,9.998e-05,2]
[355973858,1741750242619,-500.0,9.998e-05,2]
[355973859,1741750242628,-500.0,9.998e-05,2]
[355973860,1741750242637,-564.11,9.999e-05,2]
[355973861,1741750242646,-500.0,9.999e-05,2]
[355973862,1741750242655,-500.0,9.999e-05,2]
[355973863,1741750242664,-500.0,9.999e-05,2]
[355973864,1741750242673,-500.0,9.999e-05,2]
[355973865,1741750242683,-500.0,9.999e-05,2]
[355973866,1741750242692,-606.49,9.999e-05,2]
[355973867,1741750242700,-500.0,9.999e-05,2]
[355973868,1741750242709,-500.0,9.999e-05,2]
[355973869,1741750242719,-506.43,9.999e-05,2]
[355973870,1741750242728,-500.0,9.999e-05,2]
[355973871,1741750242737,-428.64032463,9.999e-05,2]
[355973872,1741750242751,-500.0,9.999e-05,2]
[355973873,1741750242760,-500.0,9.999e-05,2]
[355973874,1741750242770,-500.0,9.999e-05,2]
[355973875,1741750242779,-500.0,9.999e-05,2]
[355973876,1741750242789,-559.55,9.999e-05,2]
[355973877,1741750242798,-245.49971461,9.999e-05,2]
[355973878,1741750242807,-500.0,9.999e-05,2]
[355973879,1741750242816,-502.89,9.999e-05,2]
[355973880,1741750242826,-500.0,9.999e-05,2]
[355973881,1741750242836,-500.0,9.999e-05,2]
[355973882,1741750242845,-500.0,9.999e-05,2]
[355973883,1741750242854,-500.0,9.999e-05,2]
[355973884,1741750242863,-152.44139382,9.999e-05,2]
[355973885,1741750242872,-500.0,9.999e-05,2]
[355973886,1741750242881,-500.0,9.999e-05,2]
[355973887,1741750242890,-500.0,9.999e-05,2]
[355973888,1741750242899,-500.0,9.999e-05,2]
[355973889,1741750242908,-500.0,9.999e-05,2]
[355973890,1741750242917,-500.0,9.999e-05,2]
[355973891,1741750242926,-694.14,9.999e-05,2]
[355973892,1741750242935,-500.0,9.999e-05,2]
[355973893,1741750242945,-500.0,9.999e-05,2]
[355973894,1741750242954,-573.26,9.999e-05,2]
[355973895,1741750242963,-500.0,9.999e-05,2]
[355973896,1741750242972,-500.0,9.999e-05,2]
[355973897,1741750242982,-669.0,9.999e-05,2]
[355973898,1741750242991,-500.0,9.999e-05,2]
[355973899,1741750243000,-500.0,9.999e-05,2]
[355973900,1741750243009,-500.0,9.999e-05,2]
[355973901,1741750243019,-500.0,9.999e-05,2]
[355973902,1741750243029,-554.43,9.999e-05,2]
[355973903,1741750243038,-500.0,9.999e-05,2]
[355973904,1741750243048,-500.0,9.999e-05,2]
[355973905,1741750243057,-500.0,9.999e-05,2]
[355973906,1741750243066,-500.0,9.999e-05,2]
[355973907,1741750243075,-500.0,9.999e-05,2]
[355973908,1741750243084,-500.0,9.999e-05,2]
[355973909,1741750243093,-500.0,9.999e-05,2]
[355973910,1741750243103,-5800.0,9.999e-05,2]
[355973911,1741750243112,-500.0,9.999e-05,2]
[355973912,1741750243121,-509.74,9.999e-05,2]
[355973913,1741750243131,-500.0,9.999e-05,2]
[355973914,1741750243140,-500.0,9.999e-05,2]
[355973915,1741750243149,-500.0,9.999e-05,2]
[355973916,1741750243159,-500.0,9.999e-05,2]
[355973917,1741750243168,-500.0,9.999e-05,2]
[355973918,1741750243178,-500.0,9.999e-05,2]
[355973920,1741750243187,-500.0,9.999e-05,2]
[355973921,1741750243198,-500.0,9.999e-05,2]
[355973922,1741750243207,-500.0,9.999e-05,2]
[355973923,1741750243217,-500.0,9.999e-05,2]
[355973924,1741750243226,-500.0,9.999e-05,2]
[355973925,1741750243235,-500.0,9.999e-05,2]
[355973926,1741750243245,-536.39,9.999e-05,2]
[355973927,1741750243254,-500.0,9.999e-05,2]
[355973928,1741750243263,-500.0,9.999e-05,2]
[355973929,1741750243273,-500.0,9.999e-05,2]
[355973930,1741750243282,-500.0,9.999e-05,2]
[355973931,1741750243292,-688.11,9.999e-05,2]
[355973932,1741750243301,-504.52,9.999e-05,2]
[355973933,1741750243311,-500.0,9.999e-05,2]
[355973934,1741750243320,-500.0,9.999e-05,2]
[355973935,1741750243330,-614.75,9.999e-05,2]
[355973936,1741750243338,-500.0,9.999e-05,2]
[355973937,1741750243348,-500.0,9.999e-05,2]
[355973939,1741750243357,-569.93,9.999e-05,2]
[355973940,1741750243367,-500.0,9.999e-05,2]
[355973941,1741750243376,-500.0,9.999e-05,2]
[355973942,1741750243387,-500.0,9.999e-05,2]
[355973943,1741750243396,-500.0,9.999e-05,2]
[355973944,1741750243406,-500.0,9.999e-05,2]
[355973945,1741750243415,-500.0,9.999e-05,2]
[355973946,1741750243424,-762.2,9.999e-05,2]
[355973947,1741750243434,-500.0,9.999e-05,2]
[355973948,1741750243443,-500.0,9.999e-05,2]
[355973949,1741750243453,-500.0,9.999e-05,2]
[355973950,1741750243462,-732.65,9.999e-05,2]
[355973951,1741750243472,-500.0,9.999e-05,2]
[355973952,1741750243481,-500.0,9.999e-05,2]
[355973953,1741750243491,-638.34,9.999e-05,2]
[355973954,1741750243501,-500.0,9.999e-05,2]
[355973955,1741750243510,-1303.92,9.999e-05,2]
[355973956,1741750243519,-500.0,9.999e-05,2]
[355973957,1741750243529,-500.0,9.999e-05,2]
[355973958,1741750243539,-500.0,9.999e-05,2]
[355973959,1741750243549,-500.0,9.999e-05,2]
[355973960,1741750243559,-565.95,9.999e-05,2]
[355973961,1741750243568,-585.9,9.999e-05,2]
[355973962,1741750243578,-500.0,9.999e-05,2]
[355973963,1741750243588,-500.0,9.999e-05,2]
[355973964,1741750243598,-505.48984336,9.999e-05,2]
[355973965,1741750243607,-500.0,9.999e-05,2]
[355973966,1741750243617,-598.04,9.999e-05,2]
[355973967,1741750243626,-513.62,9.999e-05,2]
[355973968,1741750243637,-500.0,9.999e-05,2]
[355973969,1741750243647,-500.0,9.999e-05,2]
[355973970,1741750243656,-550.27,9.999e-05,2]
[355973971,1741750243666,-527.33,9.999e-05,2]